bitfinex/quotes_SOLUSD_20260223
["timestamp","ask_amount","ask_price","bid_price","bid_amount"]
[1771832460659,12.53619827,79.769,79.75,12.96240404]
[1771832461053,12.53619827,79.769,79.741,1.43101132]
[1771832461262,0.10671528,79.749,79.71,12.96240404]
[1771832461566,0.10671528,79.739,79.697,1.01627911]
[1771832461770,0.10671528,79.739,79.7,12.96240404]
[1771832461952,0.50505684,79.747,79.711,12.54531996]
[1771832462152,0.50505684,79.747,79.7,12.96240404]
[1771832462348,0.50505684,79.739,79.67,43.93121626]
[1771832462560,0.50505684,79.729,79.69,12.96240404]
[1771832463566,0.50505684,79.729,79.7,14.30872954]
[1771832463770,0.50505684,79.729,79.71,12.96240404]
[1771832464064,0.50505684,79.729,79.701,1.3463255]
[1771832464448,0.48880636,79.727,79.7,12.96240404]
[1771832464648,0.48880636,79.727,79.693,1.3463255]
[1771832464865,0.48880636,79.727,79.7,12.96240404]
[1771832465845,0.48880636,79.727,79.693,1.3463255]
[1771832466458,43.90035872,79.726,79.69,12.96240404]
[1771832467273,43.90035872,79.726,79.691,1.46804778]
[1771832468354,43.90035872,79.726,79.7,12.96240404]
[1771832468555,43.89320156,79.739,79.691,1.46804778]
[1771832469261,12.96240404,79.73,79.653,3.69383402]
[1771832469563,12.96240404,79.73,79.681,1.46804778]
[1771832470663,43.89870686,79.729,79.681,1.46804778]
[1771832470871,106.61114524,79.729,79.681,1.46804778]
[1771832471066,56.52,79.802,79.683,1.46804778]
[1771832471278,12.96240404,79.78,79.718,1.46804778]
[1771832471579,12.96240404,79.76,79.72,12.96240404]
[1771832471967,12.96240404,79.75,79.707,1.46804778]
[1771832472175,12.96240404,79.76,79.711,1.46804778]
[1771832473278,43.88219511,79.759,79.711,1.46804778]
[1771832473864,43.88219511,79.759,79.72,12.96240404]
[1771832474066,12.53715275,79.763,79.73,12.96240404]
[1771832474381,12.53715275,79.763,79.74,12.96240404]
[1771832475280,31.34037358,79.77,79.74,12.96240404]
[1771832477482,43.87119416,79.779,79.74,12.96240404]
[1771832477877,12.96240404,79.77,79.741,1.46804778]
[1771832478098,12.96240404,79.77,79.733,1.46804778]
[1771832478281,12.96240404,79.77,79.73,12.96240404]
[1771832479279,12.96240404,79.77,79.725,1.46804778]
[1771832479587,43.87669395,79.769,79.73,12.96240404]
[1771832480587,43.87669395,79.769,79.725,1.46804778]
[1771832480772,43.87669395,79.769,79.73,12.96240404]
[1771832481367,43.87669395,79.769,79.731,1.46804778]
[1771832483183,1.19615786,79.759,79.72,12.96240404]
[1771832483377,1.19615786,79.757,79.72,12.96240404]
[1771832483769,1.19615786,79.755,79.72,12.96240404]
[1771832484282,1.19615786,79.755,79.671,50.20598495]
[1771832484489,1.18408381,79.749,79.71,12.96240404]
[1771832485486,1.18408381,79.749,79.711,1.27048006]
[1771832485884,1.17388952,79.747,79.71,12.96240404]
[1771832486092,1.17388952,79.747,79.71,14.2328841]
[1771832486269,1.17388952,79.747,79.71,1.27048006]
[1771832487087,1.17388952,79.747,79.711,1.27048006]
[1771832488993,1.1386574,79.745,79.711,1.27048006]
[1771832489370,1.1386574,79.745,79.71,12.96240404]
[1771832489883,1.12596758,79.743,79.71,12.96240404]
[1771832490285,1.11339799,79.739,79.701,1.27048006]
[1771832490594,1.11339799,79.739,79.7,12.96240404]
[1771832490782,1.11339799,79.737,79.7,12.96240404]
[1771832490972,1.11339799,79.737,79.7,14.2328841]
[1771832491688,1.11339799,79.737,79.7,1.27048006]
[1771832492577,1.08861426,79.729,79.7,1.27048006]
[1771832493195,1.07639753,79.727,79.7,1.27048006]
[1771832495492,1.05230803,79.725,79.7,1.27048006]
[1771832495693,1.05230803,79.719,79.667,13.82272879]
[1771832495879,1.05230803,79.719,79.681,1.27048006]
[1771832496880,31.35354076,79.736,79.701,1.27048006]
[1771832497177,31.35354076,79.736,79.667,106.69411423]
[1771832497178,102.4,79.725,79.711,1.27048006]
[1771832497377,12.96240404,79.72,79.69,1.27048006]
[1771832497588,12.96240404,79.72,79.68,12.96240404]
[1771832497589,1.27485018,79.717,79.68,12.96240404]
[1771832497786,1.27485018,79.717,79.67,12.96240404]
[1771832497987,12.96240404,79.71,79.637,12.55697728]
[1771832498189,1.27485018,79.709,79.67,12.96240404]
[1771832498387,1.27485018,79.709,79.64,3.69383402]
[1771832498578,12.96240404,79.71,79.637,43.94942049]
[1771832498579,1.27485018,79.707,79.67,12.96240404]
[1771832498776,1.27485018,79.705,79.68,12.96240404]
[1771832498995,102.4,79.704,79.68,12.96240404]
[1771832499300,1.27485018,79.703,79.67,12.96240404]
[1771832499485,1.27485018,79.703,79.67,14.2328841]
[1771832499797,102.4,79.704,79.67,14.2328841]
[1771832499798,1.27485018,79.701,79.671,1.27048006]
[1771832500006,102.4,79.704,79.681,1.27048006]
[1771832500184,1.27485018,79.699,79.668,1.27048006]
[1771832500883,1.27485018,79.699,79.671,1.27048006]
[1771832501610,96.80681129,79.704,79.681,1.27048006]
[1771832502598,109.35336164,79.704,79.681,1.27048006]
[1771832503295,1.27485018,79.703,79.68,12.96240404]
[1771832503497,1.27485018,79.703,79.674,1.27048006]
[1771832504493,1.27485018,79.701,79.674,1.27048006]
[1771832504900,96.80681129,79.703,79.681,1.27048006]
[1771832505404,109.35346412,79.703,79.681,1.27048006]
[1771832505920,96.80681129,79.703,79.681,1.27048006]
[1771832506511,12.54673659,79.702,79.681,1.27048006]
[1771832510696,1.11158873,79.716,79.69,14.15253256]
[1771832510899,12.54280376,79.727,79.701,1.17401777]
[1771832511098,12.54280376,79.727,79.71,12.97851479]
[1771832511303,12.54280376,79.727,79.701,1.17401777]
[1771832511690,1.11158873,79.726,79.7,12.97851479]
[1771832512001,1.11158873,79.726,79.694,1.17401777]
[1771832513596,1.11158873,79.724,79.694,1.17401777]
[1771832514413,1.11158873,79.724,79.656,3.69383402]
[1771832514414,1.11158873,79.719,79.682,1.17401777]
[1771832514997,1.11158873,79.699,79.662,1.17401777]
[1771832515215,1.11158873,79.699,79.67,14.15253256]
[1771832516613,1.11158873,79.697,79.671,1.17401777]
[1771832516811,12.5473663,79.698,79.671,1.17401777]
[1771832517207,12.5473663,79.698,79.636,50.22792897]
[1771832517208,12.97851479,79.69,79.622,1.17401777]
[1771832517401,1.11158873,79.689,79.661,1.17401777]
[1771832517601,13.65895503,79.698,79.671,1.17401777]
[1771832519096,12.5473663,79.698,79.68,14.15253256]
[1771832519415,12.5473663,79.698,79.68,1.17401777]
[1771832519613,1.11158873,79.713,79.691,1.17401777]
[1771832521010,1.11158873,79.711,79.682,1.17401777]
[1771832521596,1.11158873,79.709,79.661,1.17401777]
[1771832521802,1.11158873,79.699,79.661,1.17401777]
[1771832522004,1.11158873,79.697,79.661,1.17401777]
[1771832523022,1.11158873,79.695,79.661,1.17401777]
[1771832524998,1.11158873,79.693,79.661,1.17401777]
[1771832525405,12.54799608,79.694,79.681,1.17401777]
[1771832525724,109.35418899,79.698,79.681,1.17401777]
[1771832525918,13.65439104,79.727,79.691,1.17401777]
[1771832526122,4.84789883,79.75,79.711,1.17401777]
[1771832526123,12.54185289,79.734,79.711,1.17401777]
[1771832528125,12.96826724,79.73,79.693,1.17401777]
[1771832528322,1.11158873,79.729,79.693,1.17401777]
[1771832528804,1.11158873,79.729,79.69,12.96826724]
[1771832528805,1.11158873,79.729,79.69,14.14228501]
[1771832529519,1.11158873,79.719,79.682,1.17401777]
[1771832530210,1.11158873,79.719,79.668,1.17401777]
[1771832530524,1.11158873,79.719,79.667,12.55224873]
[1771832530525,1.11158873,79.719,79.681,1.17401777]
[1771832530825,1.11158873,79.726,79.691,1.17401777]
[1771832531407,1.11158873,79.724,79.691,1.17401777]
[1771832531603,1.11158873,79.722,79.691,1.17401777]
[1771832532722,1.11158873,79.719,79.682,1.17401777]
[1771832533022,1.11158873,79.699,79.667,1.17401777]
[1771832533322,12.5473663,79.698,79.67,12.96826724]
[1771832533628,1.11158873,79.697,79.67,14.14228501]
[1771832534120,1.11158873,79.697,79.671,1.17401777]
[1771832534813,1.11158873,79.697,79.663,1.17401777]
[1771832535221,1.11158873,79.696,79.663,1.17401777]
[1771832535414,12.96826724,79.69,79.656,1.17401777]
[1771832535619,1.11158873,79.689,79.656,1.17401777]
[1771832536615,1.11158873,79.687,79.656,1.17401777]
[1771832538022,1.11158873,79.687,79.657,12.55382452]
[1771832538413,1.11158873,79.687,79.656,1.04163988]
[1771832539314,1.05245206,79.685,79.656,1.04163988]
[1771832539838,93.8795251,79.684,79.656,1.04163988]
[1771832540016,1.05245206,79.683,79.656,1.04163988]
[1771832541215,12.96826724,79.68,79.656,1.04163988]
[1771832541416,12.55035831,79.679,79.656,1.04163988]
[1771832542340,13.60281037,79.679,79.656,1.04163988]
[1771832544446,12.96826724,79.67,79.649,1.04163988]
[1771832544816,12.55193362,79.669,79.649,1.04163988]
[1771832545440,1.05245206,79.678,79.649,1.04163988]
[1771832545679,12.55067334,79.677,79.651,1.04163988]
[1771832546522,12.96826724,79.67,79.651,1.04163988]
[1771832546934,12.55193362,79.669,79.651,1.04163988]
[1771832547525,12.55140593,79.673,79.651,1.04163988]
[1771832548544,106.43093103,79.673,79.651,1.04163988]
[1771832549545,1.05245206,79.669,79.641,1.04163988]
[1771832549930,4.84944299,79.65,79.626,1.04163988]
[1771832550422,4.84944299,79.66,79.63,4.84944299]
[1771832550629,12.55350933,79.659,79.631,1.04163988]
[1771832550834,125.25778373,79.673,79.641,1.04163988]
[1771832550835,4.84944299,79.67,79.641,1.04163988]
[1771832551656,4.84944299,79.65,79.627,1.04163988]
[1771832552154,1.05245206,79.655,79.627,1.04163988]
[1771832552327,5.90189505,79.65,79.627,1.04163988]
[1771832552649,1.05245206,79.637,79.61,0.2]
[1771832552836,1.05245206,79.626,79.61,0.2]
[1771832553186,1.05245206,79.637,79.61,0.2]
[1771832553445,13.00256786,79.63,79.61,0.2]
[1771832554354,1.05245206,79.632,79.61,0.2]
[1771832554554,13.00256786,79.63,79.61,0.2]
[1771832554849,13.00256786,79.63,79.61,1.24163988]
[1771832555042,12.55823883,79.629,79.61,1.24163988]
[1771832555424,1.05245206,79.628,79.61,0.2]
[1771832555626,12.55823883,79.629,79.61,1.24163988]
[1771832555825,13.00256786,79.63,79.61,1.24163988]
[1771832556233,12.55823883,79.629,79.61,1.24163988]
[1771832556854,1.05245206,79.628,79.61,0.2]
[1771832557067,1.05245206,79.619,79.6,0.2]
[1771832557367,13.00256786,79.61,79.6,0.2]
[1771832557537,14.05501992,79.62,79.6,0.2]
[1771832557734,1.05245206,79.619,79.6,0.2]
[1771832557932,13.00256786,79.61,79.6,0.2]
[1771832558133,13.00256786,79.61,79.59,0.2]
[1771832558351,1.05245206,79.618,79.591,1.04163988]
[1771832558528,13.00256786,79.61,79.591,1.04163988]
[1771832558865,1.05245206,79.618,79.591,1.04163988]
[1771832559355,93.8795251,79.628,79.58,0.2]
[1771832559356,1.05245206,79.599,79.58,0.2]
[1771832559569,14.05501992,79.59,79.568,1.04163988]
[1771832559936,1.05245206,79.579,79.553,1.04163988]
[1771832560243,1.05245206,79.569,79.545,1.04163988]
[1771832560637,1.05245206,79.569,79.539,1.04163988]
[1771832560831,3.69383402,79.609,79.539,1.04163988]
[1771832560832,13.00256786,79.56,79.539,1.04163988]
[1771832561032,1.05245206,79.559,79.531,1.04163988]
[1771832561359,1.05245206,79.557,79.531,13.61535327]
[1771832561560,1.05245206,79.557,79.532,1.04163988]
[1771832561758,13.00256786,79.55,79.526,12.57441219]
[1771832561935,14.05501992,79.55,79.525,1.04163988]
[1771832562139,1.05245206,79.549,79.525,1.04163988]
[1771832562453,1.05245206,79.549,79.518,12.575769]
[1771832562658,1.05245206,79.549,79.519,1.04163988]
[1771832563159,1.05245206,79.564,79.54,13.00256786]
[1771832563357,12.56833085,79.566,79.541,1.04163988]
[1771832563537,1.05245206,79.598,79.561,1.04163988]
[1771832563734,1.05245206,79.598,79.571,1.04163988]
[1771832565143,1.05245206,79.596,79.563,1.04163988]
[1771832565450,1.05245206,79.596,79.563,13.61014472]
[1771832565648,1.05245206,79.601,79.571,1.04163988]
[1771832565851,1.05245206,79.599,79.57,13.00256786]
[1771832566160,1.05245206,79.599,79.563,13.61014472]
[1771832566554,1.05245206,79.599,79.564,1.04163988]
[1771832567760,0.91937184,79.597,79.565,12.56834035]
[1771832568148,0.91937184,79.605,79.58,13.91398496]
[1771832568453,0.91937184,79.605,79.58,13.00256786]
[1771832568655,0.91937184,79.605,79.581,0.9114171]
[1771832569441,12.56139381,79.609,79.581,0.9114171]
[1771832570040,0.91937184,79.608,79.576,12.56660237]
[1771832573354,12.56139381,79.609,79.541,100.57702428]
[1771832573355,0.91937184,79.616,79.581,0.9114171]
[1771832573556,0.91937184,79.609,79.581,0.9114171]
[1771832575372,0.91937184,79.607,79.581,0.9114171]
[1771832575561,0.91937184,79.607,79.579,12.56610447]
[1771832577757,0.91937184,79.605,79.576,0.9114171]
[1771832579173,0.91937184,79.604,79.576,0.9114171]
[1771832580786,0.91937184,79.604,79.572,0.9114171]
[1771832580959,90.99624534,79.606,79.591,0.9114171]
[1771832581153,89.94612833,79.606,79.591,0.9114171]
[1771832582472,89.94612833,79.606,79.59,13.0121756]
[1771832582854,89.64757135,79.606,79.591,12.56423464]
[1771832584174,89.64757135,79.606,79.58,13.0121756]
[1771832586161,89.64757135,79.606,79.581,12.56581344]
[1771832586568,54.84802339,79.606,79.581,12.56581344]
[1771832589981,0.94168849,79.604,79.57,13.0121756]
[1771832590158,0.94168849,79.599,79.57,13.0121756]
[1771832592381,0.94168849,79.589,79.55,13.0121756]
[1771832592692,0.94168849,79.579,79.55,13.0121756]
[1771832593383,0.94168849,79.579,79.551,43.99693278]
[1771832594661,0.94168849,79.586,79.56,13.0121756]
[1771832594861,0.94168849,79.593,79.57,13.0121756]
[1771832595070,0.94168849,79.593,79.58,13.0121756]
[1771832595383,0.94168849,79.605,79.581,12.56581344]
[1771832595763,0.94168849,79.604,79.581,12.56581344]
[1771832596164,0.94168849,79.604,79.57,4.85672306]
[1771832597083,0.94168849,79.599,79.567,12.56802443]
[1771832597262,12.56312972,79.598,79.544,44.00080458]
[1771832597467,0.94168849,79.579,79.55,4.85672306]
[1771832597869,0.94168849,79.559,79.544,12.57165845]
[1771832598383,0.94168849,79.559,79.507,75.46505338]
[1771832598567,0.94168849,79.559,79.53,4.85672306]
[1771832598773,0.94168849,79.559,79.52,4.85672306]
[1771832598973,0.94168849,79.559,79.53,4.85672306]
[1771832599370,0.94168849,79.559,79.53,13.02710585]
[1771832599793,0.94168849,79.557,79.531,12.57371339]
[1771832601273,0.94168849,79.557,79.504,44.02294223]
[1771832601781,0.94168849,79.557,79.52,13.02710585]
[1771832601984,0.94168849,79.555,79.521,12.57529457]
[1771832602306,0.94168849,79.555,79.53,13.02710585]
[1771832603104,62.81654159,79.597,79.521,44.01353101]
[1771832603105,0.94168849,79.567,79.54,13.02710585]
[1771832603903,0.94168849,79.601,79.561,43.99140281]
[1771832604082,0.94168849,79.601,79.58,13.02710585]
[1771832604698,0.94168849,79.601,79.561,43.99140281]
[1771832605082,0.94168849,79.601,79.58,13.02710585]
[1771832605301,0.94168849,79.613,79.59,13.02710585]
[1771832605899,13.02710585,79.62,79.578,12.56617275]
[1771832605900,0.94168849,79.62,79.6,13.02710585]
[1771832606096,0.94168849,79.62,79.578,43.98189066]
[1771832606482,0.94168849,79.62,79.59,13.02710585]
[1771832606800,0.94168849,79.619,79.59,13.02710585]
[1771832607885,0.94168849,79.617,79.561,43.99140281]
[1771832608291,0.94168849,79.617,79.58,13.02710585]
[1771832609502,13.02710585,79.62,79.582,0.73558529]
[1771832609710,13.02710585,79.61,79.582,0.73558529]
[1771832610080,13.02710585,79.61,79.58,13.02710585]
[1771832610497,13.02710585,79.62,79.58,13.75458766]
[1771832610806,13.02710585,79.62,79.581,0.72748181]
[1771832611103,13.02710585,79.62,79.591,0.76111722]
[1771832611304,0.86890488,79.627,79.593,0.76111722]
[1771832612697,0.86890488,79.619,79.593,0.76111722]
[1771832613010,0.86890488,79.634,79.61,13.02710585]
[1771832613694,0.86890488,79.633,79.61,13.02710585]
[1771832614201,0.86890488,79.633,79.602,12.56234264]
[1771832617888,0.86890488,79.629,79.592,0.71380366]
[1771832618097,0.86890488,79.619,79.593,12.56391893]
[1771832618297,0.86890488,79.619,79.593,13.27008009]
[1771832618498,0.86890488,79.619,79.594,0.70616116]
[1771832618803,0.86890488,79.627,79.594,0.70616116]
[1771832620090,0.86890488,79.627,79.6,13.02710585]
[1771832620288,0.86890488,79.646,79.621,0.69107789]
[1771832620502,0.86890488,79.646,79.62,13.02710585]
[1771832621009,0.86890488,79.646,79.596,0.68363567]
[1771832621210,0.86890488,79.609,79.567,0.68363567]
[1771832621391,0.86890488,79.609,79.537,50.29085007]
[1771832621392,5.72751326,79.6,79.571,0.68363567]
[1771832621711,0.86890488,79.6,79.571,0.68363567]
[1771832623309,0.86890488,79.6,79.573,0.73482074]
[1771832624006,0.86890488,79.598,79.573,0.73482074]
[1771832624605,0.86890488,79.598,79.566,12.5681052]
[1771832625010,0.86890488,79.589,79.566,12.5681052]
[1771832625997,0.86890488,79.587,79.564,0.72740618]
[1771832626218,0.86890488,79.587,79.562,12.56872887]
[1771832627416,0.86890488,79.585,79.556,12.56963994]
[1771832629609,0.81602198,79.579,79.549,0.68664257]
[1771832631911,0.81602198,79.579,79.548,12.57093043]
[1771832631912,0.81602198,79.579,79.551,0.67272441]
[1771832632223,0.81602198,79.587,79.551,0.67272441]
[1771832636428,0.81602198,79.587,79.55,25.58821284]
[1771832636429,0.81602198,79.585,79.553,0.63894368]
[1771832637311,0.81602198,79.579,79.55,13.0175026]
[1771832637830,0.81602198,79.579,79.551,0.63235663]
[1771832638013,0.81602198,79.579,79.548,12.57091694]
[1771832638716,0.81602198,79.577,79.55,13.0175026]
[1771832639122,0.81602198,79.569,79.543,0.61934691]
[1771832640405,0.81602198,79.578,79.551,0.61292309]
[1771832640730,0.81602198,79.578,79.553,0.61292309]
[1771832642514,0.81602198,79.578,79.55,13.0175026]
[1771832642515,0.81602198,79.578,79.554,12.57007818]
[1771832642810,0.81602198,79.578,79.555,0.60023471]
[1771832643406,103.21602198,79.584,79.555,0.60023471]
[1771832643626,0.81602198,79.596,79.561,0.59396904]
[1771832644644,0.81602198,79.596,79.571,0.58775499]
[1771832644810,31.4036895,79.609,79.565,0.58775499]
[1771832644811,0.81602198,79.594,79.565,0.58775499]
[1771832646930,0.81602198,79.594,79.567,0.57547958]
[1771832647120,0.81602198,79.593,79.567,0.57547958]
[1771832648011,0.81602198,79.593,79.568,12.56786647]
[1771832648837,0.81602198,79.591,79.568,12.56786647]
[1771832651609,0.81602198,79.591,79.57,5.40551122]
[1771832652312,0.81602198,79.591,79.571,0.53983724]
[1771832653824,0.81602198,79.591,79.553,31.42527901]
[1771832653825,0.81602198,79.589,79.561,0.53406415]
[1771832656035,0.81602198,79.589,79.56,4.85985392]
[1771832656036,0.81602198,79.589,79.563,0.52265694]
[1771832656823,0.81602198,79.589,79.57,4.85985392]
[1771832657538,0.81602198,79.589,79.563,0.52265694]
[1771832658934,0.66108208,79.588,79.564,12.56849831]
[1771832660644,0.66108208,79.588,79.565,0.48856038]
[1771832660940,0.66108208,79.588,79.567,0.48856038]
[1771832661440,0.66108208,79.597,79.567,0.48321907]
[1771832665530,0.66108208,79.595,79.571,0.46226881]
[1771832668544,0.66108208,79.593,79.571,0.46226881]
[1771832669024,0.66108208,79.593,79.566,0.44196235]
[1771832669229,0.66108208,79.593,79.564,12.56839798]
[1771832670643,0.66108208,79.593,79.565,0.43698327]
[1771832673742,0.66108208,79.593,79.571,0.42227373]
[1771832676832,12.56407679,79.592,79.571,0.42227373]
[1771832677029,0.66108208,79.591,79.571,0.42227373]
[1771832677744,103.06108208,79.597,79.573,0.40317811]
[1771832678445,0.66108208,79.596,79.573,0.40317811]
[1771832680933,0.66108208,79.596,79.574,12.56691884]
[1771832681456,0.66108208,79.596,79.575,0.38465173]
[1771832683152,0.66108208,79.596,79.576,12.56660299]
[1771832685057,0.66108208,79.596,79.577,0.37111681]
[1771832689156,0.66108208,79.596,79.578,12.56628716]
[1771832693868,0.66108208,79.596,79.578,0.33012882]
[1771832695256,0.66108208,79.596,79.579,12.56612925]
[1771832697470,0.66108208,79.596,79.579,0.31375845]
[1771832699269,0.66108208,79.596,79.572,0.3057472]
[1771832699765,0.66108208,79.596,79.573,12.87282397]
[1771832699969,0.66108208,79.596,79.574,0.3057472]
[1771832700462,0.59772644,79.579,79.557,0.30178406]
[1771832700664,0.59772644,79.579,79.54,4.85809406]
[1771832700864,0.62173627,79.579,79.55,4.85809406]
[1771832701269,114.96360324,79.595,79.571,0.61780107]
[1771832701570,102.4,79.595,79.571,0.61780107]
[1771832702460,4.85809406,79.62,79.581,0.6202013]
[1771832703372,0.59772644,79.619,79.581,0.6202013]
[1771832704181,0.59772644,79.619,79.58,4.85809406]
[1771832704182,0.59772644,79.617,79.583,0.6170535]
[1771832707679,0.59772644,79.609,79.585,0.60725259]
[1771832710063,0.59772644,79.609,79.587,0.59962293]
[1771832710266,165.17299732,79.653,79.592,0.63971038]
[1771832710565,4.85809406,79.64,79.601,0.63971038]
[1771832710789,4.85809406,79.63,79.601,0.63971038]
[1771832710975,102.4,79.629,79.601,0.63971038]
[1771832712277,0.59772644,79.639,79.611,0.63971038]
[1771832713578,0.59772644,79.637,79.611,0.63971038]
[1771832715279,0.59772644,79.637,79.6,4.85809406]
[1771832715280,0.59772644,79.637,79.612,12.56092046]
[1771832715483,0.59772644,79.642,79.61,4.85809406]
[1771832715783,0.59772644,79.629,79.595,0.63971038]
[1771832717788,0.59002879,79.627,79.601,0.56677716]
[1771832720486,0.59002879,79.625,79.601,0.56677716]
[1771832720689,0.59002879,79.625,79.603,0.56677716]
[1771832721291,0.59002879,79.625,79.6,4.85809406]
[1771832721473,0.59002879,79.619,79.592,12.56397015]
[1771832721874,0.59002879,79.619,79.592,13.13074731]
[1771832722078,0.59002879,79.619,79.592,12.56397015]
[1771832722281,0.59002879,79.619,79.593,0.56677716]
[1771832722490,0.59002879,79.619,79.594,13.13053824]
[1771832722678,0.59002879,79.619,79.595,0.56677716]
[1771832724996,0.59002879,79.63,79.601,0.56677716]
[1771832728186,0.59002879,79.63,79.611,0.56677716]
[1771832728588,0.59002879,79.635,79.611,0.56677716]
[1771832729101,102.4,79.639,79.621,0.56677716]
[1771832730103,12.5568196,79.638,79.616,0.56677716]
[1771832730406,102.4,79.639,79.616,0.56677716]
[1771832730582,102.4,79.639,79.618,0.56677716]
[1771832730995,102.97977374,79.639,79.618,0.56677716]
[1771832731499,0.57652509,79.638,79.618,0.56677716]
[1771832732089,75.83618216,79.639,79.618,0.56677716]
[1771832732491,75.83618216,79.639,79.621,0.57127202]
[1771832733402,4.85809406,79.66,79.621,0.57127202]
[1771832734105,0.02623348,79.659,79.621,0.57127202]
[1771832734281,0.0229644,79.649,79.621,0.57127202]
[1771832734686,4.85809406,79.64,79.616,0.57127202]
[1771832734897,0.0229644,79.639,79.616,0.57127202]
[1771832737289,12.55666193,79.639,79.616,0.57127202]
[1771832737486,4.85809406,79.63,79.601,0.57127202]
[1771832737698,12.55666193,79.639,79.602,0.57127202]
[1771832738190,0.58136372,79.609,79.58,4.85809406]
[1771832739391,0.58136372,79.609,79.581,12.56581344]
[1771832740212,0.58136372,79.609,79.582,0.56677716]
[1771832741188,0.58136372,79.609,79.584,0.56677716]
[1771832742109,0.58136372,79.609,79.564,3.69383402]
[1771832742110,0.58136372,79.609,79.577,0.56677716]
[1771832742313,0.56949063,79.607,79.58,4.85809406]
[1771832742607,0.56949063,79.607,79.581,0.56677716]
[1771832742806,0.56949063,79.614,79.581,0.56677716]
[1771832743414,12.56076268,79.613,79.583,0.56677716]
[1771832743715,0.56639801,79.612,79.583,0.56677716]
[1771832745418,0.56639801,79.612,79.582,12.56565555]
[1771832745419,0.56026926,79.617,79.585,0.56677716]
[1771832745606,0.56026926,79.617,79.56,4.85809406]
[1771832745607,0.59002879,79.609,79.537,113.15488388]
[1771832745909,0.59002879,79.599,79.57,4.85809406]
[1771832747315,0.59002879,79.599,79.571,12.56739264]
[1771832747718,0.59002879,79.599,79.572,0.53458664]
[1771832749112,0.51742092,79.597,79.572,0.53458664]
[1771832749412,0.51742092,79.597,79.574,0.53458664]
[1771832751516,0.51742092,79.597,79.576,0.53458664]
[1771832753903,0.51742092,79.597,79.577,12.56644507]
[1771832754101,0.51742092,79.595,79.57,0.53458664]
[1771832756617,0.51742092,79.599,79.572,0.53458664]
[1771832758526,0.51742092,79.599,79.573,12.56707677]
[1771832758930,0.51742092,79.597,79.57,4.85855027]
[1771832759319,0.51742092,79.595,79.57,5.39313691]
[1771832759510,0.51742092,79.595,79.571,0.53458664]
[1771832760722,0.51742092,79.595,79.573,0.53458664]
[1771832760914,71.25937461,79.615,79.597,0.53458664]
[1771832761320,0.51742092,79.639,79.601,0.53458664]
[1771832761523,0.51742092,79.639,79.611,0.53458664]
[1771832761712,0.51742092,79.639,79.62,4.85855027]
[1771832762826,0.51742092,79.639,79.619,0.53458664]
[1771832763022,12.5568196,79.638,79.613,0.53458664]
[1771832763345,0.51742092,79.637,79.613,0.53458664]
[1771832766327,0.51742092,79.637,79.614,12.56060491]
[1771832766530,0.51742092,79.635,79.61,4.85855027]
[1771832766730,0.51742092,79.635,79.608,13.09601919]
[1771832766933,0.51742092,79.635,79.61,4.85855027]
[1771832767531,0.51742092,79.635,79.61,5.39313691]
[1771832767827,0.51742092,79.635,79.611,0.53458664]
[1771832768135,0.51742092,79.635,79.613,0.53458664]
[1771832768720,0.51742092,79.633,79.613,0.53458664]
[1771832768917,12.55745033,79.634,79.613,0.53458664]
[1771832769142,4.85855027,79.64,79.613,0.53458664]
[1771832770436,4.85855027,79.64,79.584,3.69383402]
[1771832770437,4.85855027,79.65,79.621,0.53458664]
[1771832770864,0.51742092,79.649,79.621,0.53458664]
[1771832773231,0.51742092,79.647,79.622,0.53458664]
[1771832773444,71.25937461,79.657,79.64,4.85855027]
[1771832773623,71.25937461,79.657,79.621,12.55945019]
[1771832773624,0.51742092,79.649,79.621,12.55945019]
[1771832774638,0.51742092,79.649,79.621,43.95820177]
[1771832775538,0.51742092,79.649,79.622,0.53458664]
[1771832776729,0.51742092,79.656,79.624,0.53458664]
[1771832776929,0.51742092,79.655,79.624,0.53458664]
[1771832780446,0.51742092,79.655,79.623,12.55918516]
[1771832780447,0.49251987,79.649,79.626,0.52404001]
[1771832782339,0.49251987,79.649,79.627,12.55855425]
[1771832784344,0.49251987,79.649,79.544,103.3]
[1771832784554,0.49251987,79.629,79.598,0.52404001]
[1771832784727,0.49251987,79.629,79.6,4.85855027]
[1771832784929,0.49251987,79.629,79.601,0.52404001]
[1771832785427,0.49251987,79.639,79.621,0.52404001]
[1771832785629,0.49251987,79.647,79.621,0.52404001]
[1771832785927,0.49251987,79.647,79.629,0.52404001]
[1771832786323,0.49251987,79.639,79.607,12.56170939]
[1771832786651,0.49251987,79.639,79.611,0.52404001]
[1771832788140,0.49251987,79.629,79.607,12.56170939]
[1771832789933,0.49251987,79.629,79.605,0.52404001]
[1771832790233,0.49251987,79.627,79.605,0.52404001]
[1771832790854,0.49251987,79.627,79.606,13.0859072]
[1771832791055,0.49251987,79.619,79.566,0.52404001]
[1771832791243,4.85855027,79.59,79.568,0.52404001]
[1771832791433,0.49251987,79.596,79.571,0.52404001]
[1771832791839,4.85855027,79.62,79.581,0.52404001]
[1771832792038,12.55981612,79.619,79.591,0.52404001]
[1771832792240,12.55862966,79.627,79.601,0.52404001]
[1771832793762,4.85855027,79.62,79.601,0.52404001]